[Event "Titled Tuesday Blitz March 08 Early 2022"]
[White "Majella, Rudijanto"]
[Black "McCoy, Owen"]
[WhiteFideId "7100680"]
[BlackFideId "30924502"]
[WhiteElo "2252"]
[BlackElo "2395"]
[Result "1-0"]
[Round "03"]
[TimeControl "180+1"]
[Date "2022.03.09"]
[WhiteClock "0:00:20"]
[BlackClock "0:00:14"]

1. e4 {[%clk 0:02:53]}  e5 {[%clk 0:02:59]} 2. Nf3 {[%clk 0:02:50]}  Nc6 {[%clk 0:02:59]} 3. d4 {[%clk 0:02:50]}  exd4 {[%clk 0:02:58]} 4. Bc4 {[%clk 0:02:50]}  Nf6 {[%clk 0:02:54]} 5. e5 {[%clk 0:02:50]}  d5 {[%clk 0:02:51]} 6. Bb5 {[%clk 0:02:50]}  Ne4 {[%clk 0:02:48]} 7. Nxd4 {[%clk 0:02:50]}  Bd7 {[%clk 0:02:42]} 8. Bxc6 {[%clk 0:02:49]}  bxc6 {[%clk 0:02:42]} 9. O-O {[%clk 0:02:50]}  Bc5 {[%clk 0:02:27]} 10. f3 {[%clk 0:02:49]}  Ng5 {[%clk 0:02:24]} 11. f4 {[%clk 0:02:48]}  Ne4 {[%clk 0:02:19]} 12. Be3 {[%clk 0:02:48]}  Rb8 {[%clk 0:02:11]} 13. b3 {[%clk 0:02:35]}  O-O {[%clk 0:02:07]} 14. Kh1 {[%clk 0:02:34]}  Qe8 {[%clk 0:01:59]} 15. Nd2 {[%clk 0:02:32]}  Nxd2 {[%clk 0:01:19]} 16. Qxd2 {[%clk 0:02:33]}  f6 {[%clk 0:01:13]} 17. Nf3 {[%clk 0:02:30]}  Bxe3 {[%clk 0:01:05]} 18. Qxe3 {[%clk 0:02:31]}  Bg4 {[%clk 0:01:05]} 19. Rae1 {[%clk 0:02:26]}  Bxf3 {[%clk 0:01:02]} 20. Qxf3 {[%clk 0:02:20]}  fxe5 {[%clk 0:01:01]} 21. Rxe5 {[%clk 0:02:19]}  Qxe5 {[%clk 0:00:59]} 22. fxe5 {[%clk 0:02:19]}  Rxf3 {[%clk 0:00:59]} 23. gxf3 {[%clk 0:02:08]}  Kf7 {[%clk 0:00:50]} 24. f4 {[%clk 0:02:07]}  g6 {[%clk 0:00:50]} 25. f5 {[%clk 0:02:05]}  gxf5 {[%clk 0:00:49]} 26. Rxf5+ {[%clk 0:02:05]}  Ke6 {[%clk 0:00:48]} 27. Rf6+ {[%clk 0:02:05]}  Kxe5 {[%clk 0:00:48]} 28. Rxc6 {[%clk 0:02:05]}  Rf8 {[%clk 0:00:23]} 29. Kg2 {[%clk 0:02:04]}  Rf7 {[%clk 0:00:21]} 30. a4 {[%clk 0:01:59]}  d4 {[%clk 0:00:21]} 31. Rc5+ {[%clk 0:01:48]}  Kd6 {[%clk 0:00:19]} 32. b4 {[%clk 0:01:43]}  c6 {[%clk 0:00:17]} 33. Kg3 {[%clk 0:01:37]}  Rb7 {[%clk 0:00:14]} 34. Rc4 {[%clk 0:01:33]}  Kd5 {[%clk 0:00:12]} 35. Rc5+ {[%clk 0:01:33]}  Kd6 {[%clk 0:00:11]} 36. Rc4 {[%clk 0:01:21]}  Kd5 {[%clk 0:00:11]} 37. Rc5+ {[%clk 0:01:21]}  Ke4 {[%clk 0:00:12]} 38. b5 {[%clk 0:01:12]}  cxb5 {[%clk 0:00:11]} 39. axb5 {[%clk 0:01:13]}  Rg7+ {[%clk 0:00:11]} 40. Kf2 {[%clk 0:01:11]}  Rf7+ {[%clk 0:00:10]} 41. Kg3 {[%clk 0:01:10]}  Rb7 {[%clk 0:00:09]} 42. h4 {[%clk 0:01:05]}  Ke3 {[%clk 0:00:08]} 43. Kg4 {[%clk 0:01:04]}  Kd2 {[%clk 0:00:05]} 44. Kf5 {[%clk 0:01:00]}  Rb6 {[%clk 0:00:04]} 45. Ke4 {[%clk 0:01:00]}  Rd6 {[%clk 0:00:03]} 46. Rc6 {[%clk 0:00:59]}  Rd7 {[%clk 0:00:02]} 47. Rc4 {[%clk 0:00:58]}  Rb7 {[%clk 0:00:02]} 48. Rc5 {[%clk 0:00:56]}  d3 {[%clk 0:00:02]} 49. cxd3 {[%clk 0:00:54]}  Re7+ {[%clk 0:00:02]} 50. Kd4 {[%clk 0:00:48]}  Rd7+ {[%clk 0:00:03]} 51. Kc4 {[%clk 0:00:31]}  Rxd3 {[%clk 0:00:04]} 52. Rd5 {[%clk 0:00:21]}  Rxd5 {[%clk 0:00:04]} 53. Kxd5 {[%clk 0:00:22]}  h5 {[%clk 0:00:05]} 54. Kc6 {[%clk 0:00:15]}  Ke3 {[%clk 0:00:06]} 55. Kb7 {[%clk 0:00:15]}  Kf4 {[%clk 0:00:06]} 56. Kxa7 {[%clk 0:00:16]}  Kg4 {[%clk 0:00:07]} 57. b6 {[%clk 0:00:17]}  Kxh4 {[%clk 0:00:08]} 58. b7 {[%clk 0:00:18]}  Kg3 {[%clk 0:00:09]} 59. b8=Q+ {[%clk 0:00:18]}  Kh3 {[%clk 0:00:09]} 60. Qb1 {[%clk 0:00:17]}  h4 {[%clk 0:00:10]} 61. Qh1+ {[%clk 0:00:17]}  Kg3 {[%clk 0:00:11]} 62. Kb6 {[%clk 0:00:18]}  h3 {[%clk 0:00:12]} 63. Kc5 {[%clk 0:00:19]}  Kh4 {[%clk 0:00:12]} 64. Kd4 {[%clk 0:00:20]}  Kg4 {[%clk 0:00:13]} 65. Ke3 {[%clk 0:00:20]}  Kg3 {[%clk 0:00:14]} 66. Ke2 {[%clk 0:00:20]} 1-0


[Site "https://www.chess.com"]

[Event "Titled Tuesday Blitz March 08 Early 2022"]
[White "Martinez Alcantara, Jose Eduardo"]
[Black "Murzin, Volodar"]
[WhiteFideId "3805662"]
[BlackFideId "44155573"]
[WhiteElo "2690"]
[BlackElo "2585"]
[Result "1-0"]
[Round "03"]
[TimeControl "180+1"]
[Date "2022.03.08"]
[WhiteClock "0:00:17"]
[BlackClock "0:00:01"]

1. e4 {[%clk 0:03:00]}  c6 {[%clk 0:02:57]} 2. d4 {[%clk 0:03:01]}  d5 {[%clk 0:02:55]} 3. e5 {[%clk 0:03:01]}  Bf5 {[%clk 0:02:54]} 4. h4 {[%clk 0:03:02]}  h5 {[%clk 0:02:54]} 5. Bd3 {[%clk 0:03:02]}  Bxd3 {[%clk 0:02:53]} 6. Qxd3 {[%clk 0:03:03]}  Qa5+ {[%clk 0:02:52]} 7. b4 {[%clk 0:03:02]}  Qa6 {[%clk 0:02:40]} 8. e6 {[%clk 0:03:02]}  Qxd3 {[%clk 0:02:36]} 9. cxd3 {[%clk 0:03:03]}  fxe6 {[%clk 0:02:21]} 10. Nd2 {[%clk 0:03:03]}  Nd7 {[%clk 0:02:20]} 11. Ndf3 {[%clk 0:02:56]}  g6 {[%clk 0:02:19]} 12. Nh3 {[%clk 0:02:54]}  Bg7 {[%clk 0:01:56]} 13. Nf4 {[%clk 0:02:43]}  Nf8 {[%clk 0:01:55]} 14. Rb1 {[%clk 0:02:38]}  a6 {[%clk 0:01:45]} 15. a4 {[%clk 0:02:36]}  Nh6 {[%clk 0:01:44]} 16. O-O {[%clk 0:02:19]}  Nf5 {[%clk 0:01:42]} 17. Ne2 {[%clk 0:02:20]}  Bf6 {[%clk 0:01:41]} 18. g3 {[%clk 0:02:20]}  Nd7 {[%clk 0:01:41]} 19. Bf4 {[%clk 0:02:18]}  Kf7 {[%clk 0:01:17]} 20. Rfe1 {[%clk 0:02:15]}  Rhc8 {[%clk 0:01:14]} 21. Kh2 {[%clk 0:02:01]}  Kg8 {[%clk 0:01:09]} 22. Kg2 {[%clk 0:01:52]}  Nb6 {[%clk 0:01:03]} 23. a5 {[%clk 0:01:41]}  Nd7 {[%clk 0:01:01]} 24. Ng5 {[%clk 0:01:28]}  Nxd4 {[%clk 0:00:30]} 25. Nxd4 {[%clk 0:01:23]}  Bxd4 {[%clk 0:00:31]} 26. Nxe6 {[%clk 0:01:24]}  Bf6 {[%clk 0:00:27]} 27. Nc7 {[%clk 0:01:19]}  Ra7 {[%clk 0:00:25]} 28. Ne6 {[%clk 0:01:17]}  Kf7 {[%clk 0:00:12]} 29. Re2 {[%clk 0:01:05]}  Raa8 {[%clk 0:00:10]} 30. Nc7 {[%clk 0:01:04]}  Ra7 {[%clk 0:00:08]} 31. Ne6 {[%clk 0:01:05]}  Raa8 {[%clk 0:00:09]} 32. Rbe1 {[%clk 0:01:03]}  Rh8 {[%clk 0:00:06]} 33. Bg5 {[%clk 0:00:55]}  Rae8 {[%clk 0:00:03]} 34. Nc7 {[%clk 0:00:54]}  e5 {[%clk 0:00:03]} 35. Nxe8 {[%clk 0:00:54]}  Rxe8 {[%clk 0:00:04]} 36. f4 {[%clk 0:00:50]}  e4 {[%clk 0:00:03]} 37. dxe4 {[%clk 0:00:50]}  Bc3 {[%clk 0:00:03]} 38. Rd1 {[%clk 0:00:46]}  Bxb4 {[%clk 0:00:02]} 39. e5 {[%clk 0:00:32]}  Nc5 {[%clk 0:00:02]} 40. Rf1 {[%clk 0:00:27]}  Bxa5 {[%clk 0:00:02]} 41. f5 {[%clk 0:00:27]}  gxf5 {[%clk 0:00:03]} 42. Rxf5+ {[%clk 0:00:28]}  Kg8 {[%clk 0:00:03]} 43. Bf4 {[%clk 0:00:20]}  Ne4 {[%clk 0:00:03]} 44. Rxh5 {[%clk 0:00:20]}  Bd8 {[%clk 0:00:04]} 45. Rh6 {[%clk 0:00:19]}  a5 {[%clk 0:00:03]} 46. Rb2 {[%clk 0:00:18]}  Re7 {[%clk 0:00:03]} 47. Rg6+ {[%clk 0:00:16]}  Kh7 {[%clk 0:00:03]} 48. h5 {[%clk 0:00:17]}  Rf7 {[%clk 0:00:02]} 49. e6 {[%clk 0:00:17]}  Re7 {[%clk 0:00:03]} 50. Be5 {[%clk 0:00:17]}  a4 {[%clk 0:00:02]} 51. Rb1 {[%clk 0:00:17]}  b5 {[%clk 0:00:02]} 52. Rf1 {[%clk 0:00:17]}  a3 {[%clk 0:00:01]} 53. Rf8 {[%clk 0:00:17]} 1-0


[Site "https://www.chess.com"]

[Event "Titled Tuesday Blitz March 08 Early 2022"]
[White "Matlakov, Maxim"]
[Black "Horobetz, Graham"]
[WhiteFideId "4168003"]
[BlackFideId "2047322"]
[WhiteElo "2669"]
[BlackElo "2643"]
[Result "1-0"]
[Round "03"]
[TimeControl "180+1"]
[Date "2022.03.08"]
[WhiteClock "0:01:18"]
[BlackClock "0:00:21"]

1. e4 {[%clk 0:03:00]}  c5 {[%clk 0:02:59]} 2. Nf3 {[%clk 0:03:00]}  d6 {[%clk 0:02:59]} 3. d4 {[%clk 0:02:57]}  cxd4 {[%clk 0:03:00]} 4. Nxd4 {[%clk 0:02:57]}  Nf6 {[%clk 0:03:01]} 5. Nc3 {[%clk 0:02:57]}  a6 {[%clk 0:03:01]} 6. a4 {[%clk 0:02:57]}  e5 {[%clk 0:03:00]} 7. Nf3 {[%clk 0:02:57]}  Be7 {[%clk 0:02:58]} 8. Bg5 {[%clk 0:02:55]}  Be6 {[%clk 0:02:52]} 9. Bxf6 {[%clk 0:02:55]}  Bxf6 {[%clk 0:02:52]} 10. Nd5 {[%clk 0:02:56]}  Nd7 {[%clk 0:02:52]} 11. Bc4 {[%clk 0:02:55]}  Be7 {[%clk 0:02:26]} 12. O-O {[%clk 0:02:54]}  O-O {[%clk 0:02:22]} 13. Qe2 {[%clk 0:02:54]}  Nf6 {[%clk 0:02:17]} 14. Nxf6+ {[%clk 0:02:53]}  gxf6 {[%clk 0:02:12]} 15. Bxe6 {[%clk 0:02:54]}  fxe6 {[%clk 0:02:12]} 16. a5 {[%clk 0:02:45]}  Kh8 {[%clk 0:02:10]} 17. c3 {[%clk 0:02:37]}  Qd7 {[%clk 0:02:09]} 18. Rfd1 {[%clk 0:02:37]}  Qc6 {[%clk 0:02:06]} 19. Nh4 {[%clk 0:02:31]}  f5 {[%clk 0:02:03]} 20. Qh5 {[%clk 0:02:24]}  Rg8 {[%clk 0:01:49]} 21. g3 {[%clk 0:02:03]}  Rg5 {[%clk 0:01:21]} 22. Qh6 {[%clk 0:01:31]}  Rg7 {[%clk 0:01:03]} 23. exf5 {[%clk 0:01:23]}  Rf8 {[%clk 0:00:27]} 24. Ng6+ {[%clk 0:01:19]}  Rxg6 {[%clk 0:00:21]} 25. fxg6 {[%clk 0:01:18]} 1-0


[Site "https://www.chess.com"]

[Event "Titled Tuesday Blitz March 08 Early 2022"]
[White "Michelle Catherina, P"]
[Black "Pacuszka, Tomasz"]
[WhiteFideId "5005736"]
[BlackFideId "1119036"]
[WhiteElo "2049"]
[BlackElo "2083"]
[Result "1-0"]
[Round "03"]
[TimeControl "180+1"]
[Date "2022.03.09"]
[WhiteClock "0:01:22"]
[BlackClock "0:01:44"]

1. d4 {[%clk 0:02:59]}  d5 {[%clk 0:02:59]} 2. Nc3 {[%clk 0:02:59]}  Nf6 {[%clk 0:02:58]} 3. Bf4 {[%clk 0:02:59]}  c5 {[%clk 0:02:56]} 4. e3 {[%clk 0:02:58]}  a6 {[%clk 0:02:54]} 5. h3 {[%clk 0:02:57]}  Nc6 {[%clk 0:02:53]} 6. Nf3 {[%clk 0:02:53]}  Bf5 {[%clk 0:02:52]} 7. dxc5 {[%clk 0:02:49]}  e6 {[%clk 0:02:52]} 8. Na4 {[%clk 0:02:42]}  Be7 {[%clk 0:02:42]} 9. c3 {[%clk 0:02:36]}  O-O {[%clk 0:02:41]} 10. Be2 {[%clk 0:02:32]}  Ne4 {[%clk 0:02:39]} 11. b4 {[%clk 0:02:27]}  g5 {[%clk 0:02:31]} 12. Bh2 {[%clk 0:02:22]}  Bf6 {[%clk 0:02:30]} 13. Rc1 {[%clk 0:02:18]}  Bg6 {[%clk 0:02:26]} 14. O-O {[%clk 0:02:15]}  h5 {[%clk 0:02:03]} 15. Nd4 {[%clk 0:01:59]}  Nxd4 {[%clk 0:01:59]} 16. cxd4 {[%clk 0:01:56]}  g4 {[%clk 0:01:59]} 17. hxg4 {[%clk 0:01:54]}  hxg4 {[%clk 0:01:56]} 18. Bxg4 {[%clk 0:01:53]}  Kg7 {[%clk 0:01:57]} 19. Nb6 {[%clk 0:01:50]}  Rh8 {[%clk 0:01:54]} 20. Nxa8 {[%clk 0:01:44]}  Qxa8 {[%clk 0:01:52]} 21. f3 {[%clk 0:01:26]}  Ng5 {[%clk 0:01:44]} 22. Bg3 {[%clk 0:01:22]} 1-0


[Site "https://www.chess.com"]

[Event "Titled Tuesday Blitz March 08 Early 2022"]
[White "Mirzanurov, Bulat"]
[Black "Petrovic, Aleksa"]
[WhiteFideId "4184521"]
[BlackFideId "967629"]
[WhiteElo "2116"]
[BlackElo "2245"]
[Result "1/2-1/2"]
[Round "03"]
[TimeControl "180+1"]
[Date "2022.03.09"]
[WhiteClock "0:00:04"]
[BlackClock "0:00:08"]

1. e4 {[%clk 0:03:00]}  c5 {[%clk 0:02:56]} 2. Nf3 {[%clk 0:03:00]}  e6 {[%clk 0:02:55]} 3. d4 {[%clk 0:02:59]}  cxd4 {[%clk 0:02:56]} 4. Nxd4 {[%clk 0:02:59]}  Nf6 {[%clk 0:02:55]} 5. Nc3 {[%clk 0:02:58]}  d6 {[%clk 0:02:55]} 6. g4 {[%clk 0:02:56]}  e5 {[%clk 0:02:53]} 7. Nf5 {[%clk 0:02:56]}  g6 {[%clk 0:02:33]} 8. Ne3 {[%clk 0:02:51]}  Bh6 {[%clk 0:02:26]} 9. Rg1 {[%clk 0:02:45]}  Bg5 {[%clk 0:02:07]} 10. Ned5 {[%clk 0:01:53]}  Nxd5 {[%clk 0:01:58]} 11. Nxd5 {[%clk 0:01:40]}  Bxc1 {[%clk 0:01:51]} 12. Qxc1 {[%clk 0:01:36]}  Be6 {[%clk 0:01:50]} 13. Qd2 {[%clk 0:01:26]}  Bxd5 {[%clk 0:01:46]} 14. Qxd5 {[%clk 0:01:24]}  Ke7 {[%clk 0:01:35]} 15. Bc4 {[%clk 0:01:18]}  Rf8 {[%clk 0:01:31]} 16. Qxb7+ {[%clk 0:01:14]}  Nd7 {[%clk 0:01:27]} 17. Qd5 {[%clk 0:01:07]}  Rc8 {[%clk 0:01:14]} 18. Bb3 {[%clk 0:01:01]}  Rc5 {[%clk 0:01:05]} 19. Qd3 {[%clk 0:00:58]}  Qa5+ {[%clk 0:01:01]} 20. c3 {[%clk 0:00:56]}  Rb8 {[%clk 0:00:58]} 21. Rd1 {[%clk 0:00:53]}  Qc7 {[%clk 0:00:52]} 22. Rg3 {[%clk 0:00:42]}  g5 {[%clk 0:00:42]} 23. Rf3 {[%clk 0:00:39]}  Nf6 {[%clk 0:00:39]} 24. Rf5 {[%clk 0:00:32]}  Rg8 {[%clk 0:00:38]} 25. Qf3 {[%clk 0:00:29]}  Rg6 {[%clk 0:00:38]} 26. h4 {[%clk 0:00:26]}  Qb7 {[%clk 0:00:09]} 27. hxg5 {[%clk 0:00:24]}  Qxe4+ {[%clk 0:00:09]} 28. Qxe4 {[%clk 0:00:23]}  Nxe4 {[%clk 0:00:10]} 29. Rxf7+ {[%clk 0:00:23]}  Ke8 {[%clk 0:00:11]} 30. f3 {[%clk 0:00:21]}  Nxg5 {[%clk 0:00:11]} 31. Rxa7 {[%clk 0:00:18]}  Nxf3+ {[%clk 0:00:11]} 32. Ke2 {[%clk 0:00:18]}  Ng5 {[%clk 0:00:10]} 33. Ba4+ {[%clk 0:00:16]}  Kf8 {[%clk 0:00:08]} 34. Rf1+ {[%clk 0:00:16]}  Kg8 {[%clk 0:00:06]} 35. Bb3+ {[%clk 0:00:15]}  d5 {[%clk 0:00:07]} 36. Rd7 {[%clk 0:00:14]}  Ne6 {[%clk 0:00:06]} 37. Bxd5 {[%clk 0:00:13]}  Rxd5 {[%clk 0:00:06]} 38. Rxd5 {[%clk 0:00:11]}  Nf4+ {[%clk 0:00:07]} 39. Rxf4 {[%clk 0:00:12]}  exf4 {[%clk 0:00:08]} 40. Kf3 {[%clk 0:00:11]}  Rb6 {[%clk 0:00:06]} 41. b4 {[%clk 0:00:11]}  Ra6 {[%clk 0:00:06]} 42. Rd2 {[%clk 0:00:11]}  Ra3 {[%clk 0:00:05]} 43. Rc2 {[%clk 0:00:11]}  Kf7 {[%clk 0:00:04]} 44. Kxf4 {[%clk 0:00:11]}  Ke6 {[%clk 0:00:05]} 45. c4 {[%clk 0:00:12]}  Ra4 {[%clk 0:00:04]} 46. b5 {[%clk 0:00:12]}  Kd6 {[%clk 0:00:05]} 47. Ke4 {[%clk 0:00:10]}  Kc5 {[%clk 0:00:05]} 48. Kd3 {[%clk 0:00:10]}  Ra3+ {[%clk 0:00:05]} 49. Rc3 {[%clk 0:00:10]}  Rxa2 {[%clk 0:00:05]} 50. Rc1 {[%clk 0:00:09]}  Rg2 {[%clk 0:00:05]} 51. Rf1 {[%clk 0:00:07]}  Rg3+ {[%clk 0:00:05]} 52. Ke4 {[%clk 0:00:07]}  Rxg4+ {[%clk 0:00:05]} 53. Kf5 {[%clk 0:00:07]}  Rxc4 {[%clk 0:00:04]} 54. Rh1 {[%clk 0:00:06]}  Kxb5 {[%clk 0:00:03]} 55. Rxh7 {[%clk 0:00:06]}  Rc5+ {[%clk 0:00:04]} 56. Ke6 {[%clk 0:00:06]}  Rc6+ {[%clk 0:00:04]} 57. Kd5 {[%clk 0:00:06]}  Rc5+ {[%clk 0:00:05]} 58. Kd4 {[%clk 0:00:07]}  Rc4+ {[%clk 0:00:05]} 59. Kd3 {[%clk 0:00:07]}  Rc5 {[%clk 0:00:05]} 60. Rb7+ {[%clk 0:00:07]}  Kc6 {[%clk 0:00:05]} 61. Rb3 {[%clk 0:00:07]}  Rd5+ {[%clk 0:00:06]} 62. Ke4 {[%clk 0:00:07]}  Rc5 {[%clk 0:00:06]} 63. Rd3 {[%clk 0:00:08]}  Rc4+ {[%clk 0:00:06]} 64. Ke5 {[%clk 0:00:08]}  Rc5+ {[%clk 0:00:06]} 65. Ke6 {[%clk 0:00:08]}  Kb6 {[%clk 0:00:06]} 66. Rb3+ {[%clk 0:00:08]}  Rb5 {[%clk 0:00:06]} 67. Ra3 {[%clk 0:00:08]}  Ra5 {[%clk 0:00:06]} 68. Rh3 {[%clk 0:00:07]}  Rb5 {[%clk 0:00:06]} 69. Kd6 {[%clk 0:00:07]}  Ka5 {[%clk 0:00:06]} 70. Ra3+ {[%clk 0:00:05]}  Kb4 {[%clk 0:00:06]} 71. Ra1 {[%clk 0:00:05]}  Rb6+ {[%clk 0:00:06]} 72. Kd5 {[%clk 0:00:05]}  Rb5+ {[%clk 0:00:07]} 73. Kd4 {[%clk 0:00:05]}  Rh5 {[%clk 0:00:07]} 74. Rb1+ {[%clk 0:00:05]}  Ka4 {[%clk 0:00:07]} 75. Kc4 {[%clk 0:00:05]}  Rh4+ {[%clk 0:00:08]} 76. Kd3 {[%clk 0:00:05]}  Rh3+ {[%clk 0:00:08]} 77. Kd4 {[%clk 0:00:05]}  Rh4+ {[%clk 0:00:08]} 78. Kd5 {[%clk 0:00:06]}  Rh5+ {[%clk 0:00:09]} 79. Kd6 {[%clk 0:00:06]}  Rh6+ {[%clk 0:00:09]} 80. Kd5 {[%clk 0:00:07]}  Rh5+ {[%clk 0:00:09]} 81. Kd6 {[%clk 0:00:07]}  Ka3 {[%clk 0:00:09]} 82. Rf1 {[%clk 0:00:05]}  Ka2 {[%clk 0:00:08]} 83. Rf2+ {[%clk 0:00:05]}  Kb1 {[%clk 0:00:09]} 84. Rf1+ {[%clk 0:00:05]}  Kc2 {[%clk 0:00:09]} 85. Rf2+ {[%clk 0:00:06]}  Kd1 {[%clk 0:00:09]} 86. Ra2 {[%clk 0:00:05]}  Kc1 {[%clk 0:00:09]} 87. Ra1+ {[%clk 0:00:05]}  Kb2 {[%clk 0:00:09]} 88. Rg1 {[%clk 0:00:06]}  Kc3 {[%clk 0:00:09]} 89. Rg3+ {[%clk 0:00:06]}  Kd4 {[%clk 0:00:10]} 90. Ke6 {[%clk 0:00:06]}  Rh6+ {[%clk 0:00:09]} 91. Kf5 {[%clk 0:00:07]}  Rb6 {[%clk 0:00:09]} 92. Kg5 {[%clk 0:00:07]}  Ke4 {[%clk 0:00:09]} 93. Kg4 {[%clk 0:00:06]}  Rg6+ {[%clk 0:00:08]} 94. Kh3 {[%clk 0:00:07]}  Rh6+ {[%clk 0:00:09]} 95. Kg2 {[%clk 0:00:07]}  Kf4 {[%clk 0:00:09]} 96. Rf3+ {[%clk 0:00:07]}  Kg4 {[%clk 0:00:10]} 97. Rg3+ {[%clk 0:00:07]}  Kf4 {[%clk 0:00:10]} 98. Rf3+ {[%clk 0:00:07]}  Ke4 {[%clk 0:00:11]} 99. Rg3 {[%clk 0:00:07]}  Rb6 {[%clk 0:00:10]} 100. Rg4+ {[%clk 0:00:07]}  Ke3 {[%clk 0:00:10]} 101. Rg3+ {[%clk 0:00:07]}  Ke2 {[%clk 0:00:11]} 102. Kh3 {[%clk 0:00:08]}  Kf2 {[%clk 0:00:10]} 103. Rg2+ {[%clk 0:00:07]}  Kf3 {[%clk 0:00:09]} 104. Kh2 {[%clk 0:00:04]}  Rh6+ {[%clk 0:00:08]} 105. Kg1 {[%clk 0:00:04]} 1/2-1/2


[Site "https://www.chess.com"]

[Event "Titled Tuesday Blitz March 08 Early 2022"]
[White "Mohammad Fahad, Rahman"]
[Black "Oparin, Grigoriy"]
[WhiteFideId "10207791"]
[BlackFideId "24125890"]
[WhiteElo "2323"]
[BlackElo "2665"]
[Result "0-1"]
[Round "03"]
[TimeControl "180+1"]
[Date "2022.03.08"]
[WhiteClock "0:02:08"]
[BlackClock "0:02:24"]

1. Nf3 {[%clk 0:03:00]}  c5 {[%clk 0:02:58]} 2. b3 {[%clk 0:03:00]}  Nc6 {[%clk 0:02:56]} 3. Bb2 {[%clk 0:03:01]}  d5 {[%clk 0:02:56]} 4. e3 {[%clk 0:03:01]}  a6 {[%clk 0:02:57]} 5. c4 {[%clk 0:03:02]}  d4 {[%clk 0:02:55]} 6. Be2 {[%clk 0:03:01]}  e5 {[%clk 0:02:54]} 7. exd4 {[%clk 0:03:01]}  exd4 {[%clk 0:02:55]} 8. d3 {[%clk 0:03:01]}  Bd6 {[%clk 0:02:54]} 9. O-O {[%clk 0:03:01]}  Nge7 {[%clk 0:02:53]} 10. Na3 {[%clk 0:03:02]}  O-O {[%clk 0:02:53]} 11. Nc2 {[%clk 0:03:02]}  Bf5 {[%clk 0:02:50]} 12. a3 {[%clk 0:03:01]}  h6 {[%clk 0:02:50]} 13. b4 {[%clk 0:02:59]}  b6 {[%clk 0:02:50]} 14. h3 {[%clk 0:02:58]}  Bh7 {[%clk 0:02:50]} 15. Re1 {[%clk 0:02:56]}  Ng6 {[%clk 0:02:50]} 16. Nh2 {[%clk 0:02:56]}  Nf4 {[%clk 0:02:49]} 17. Bf3 {[%clk 0:02:56]}  Qc7 {[%clk 0:02:49]} 18. Be4 {[%clk 0:02:54]}  Nxh3+ {[%clk 0:02:48]} 19. gxh3 {[%clk 0:02:52]}  Bxh2+ {[%clk 0:02:48]} 20. Kg2 {[%clk 0:02:53]}  Bxe4+ {[%clk 0:02:48]} 21. Rxe4 {[%clk 0:02:53]}  Bd6 {[%clk 0:02:46]} 22. bxc5 {[%clk 0:02:54]}  bxc5 {[%clk 0:02:46]} 23. a4 {[%clk 0:02:50]}  Ne7 {[%clk 0:02:46]} 24. Ba3 {[%clk 0:02:50]}  Ng6 {[%clk 0:02:46]} 25. Qg4 {[%clk 0:02:50]}  Kh7 {[%clk 0:02:41]} 26. Ree1 {[%clk 0:02:45]}  f5 {[%clk 0:02:41]} 27. Qd1 {[%clk 0:02:42]}  Nh4+ {[%clk 0:02:39]} 28. Kf1 {[%clk 0:02:42]}  Qc6 {[%clk 0:02:40]} 29. Qh5 {[%clk 0:02:40]}  Rae8 {[%clk 0:02:31]} 30. Rxe8 {[%clk 0:02:18]}  Rxe8 {[%clk 0:02:31]} 31. f3 {[%clk 0:02:16]}  Bg3 {[%clk 0:02:24]} 32. Bxc5 {[%clk 0:02:11]}  g6 {[%clk 0:02:24]} 33. Nxd4 {[%clk 0:02:08]}  Qxc5 {[%clk 0:02:24]} 34. Qxh4 {[%clk 0:02:08]}  Bxh4 {[%clk 0:02:24]} 0-1


[Site "https://www.chess.com"]

[Event "Titled Tuesday Blitz March 08 Early 2022"]
[White "Molina, Roberto Junio Brito"]
[Black "Aldokhin, Ivan"]
[WhiteFideId "2109450"]
[BlackFideId "24115720"]
[WhiteElo "2432"]
[BlackElo "2231"]
[Result "1-0"]
[Round "03"]
[TimeControl "180+1"]
[Date "2022.03.08"]
[WhiteClock "0:00:18"]
[BlackClock "0:00:07"]

1. d4 {[%clk 0:02:46]}  Nf6 {[%clk 0:02:59]} 2. c4 {[%clk 0:02:37]}  g6 {[%clk 0:03:00]} 3. Nc3 {[%clk 0:02:35]}  Bg7 {[%clk 0:03:00]} 4. e4 {[%clk 0:02:35]}  d6 {[%clk 0:03:01]} 5. Nf3 {[%clk 0:02:33]}  O-O {[%clk 0:03:02]} 6. Be2 {[%clk 0:02:32]}  Nc6 {[%clk 0:03:02]} 7. d5 {[%clk 0:02:31]}  Nb4 {[%clk 0:03:02]} 8. O-O {[%clk 0:02:26]}  Re8 {[%clk 0:03:02]} 9. a3 {[%clk 0:02:23]}  Na6 {[%clk 0:03:02]} 10. Nd4 {[%clk 0:02:23]}  e6 {[%clk 0:03:00]} 11. f3 {[%clk 0:02:20]}  exd5 {[%clk 0:02:54]} 12. cxd5 {[%clk 0:02:19]}  Nh5 {[%clk 0:02:45]} 13. Be3 {[%clk 0:02:15]}  Qh4 {[%clk 0:02:17]} 14. Rf2 {[%clk 0:02:09]}  Bd7 {[%clk 0:01:35]} 15. b4 {[%clk 0:01:59]}  f5 {[%clk 0:01:32]} 16. Bxa6 {[%clk 0:01:43]}  bxa6 {[%clk 0:01:24]} 17. Raa2 {[%clk 0:01:36]}  fxe4 {[%clk 0:00:57]} 18. Nxe4 {[%clk 0:01:30]}  Rxe4 {[%clk 0:00:56]} 19. fxe4 {[%clk 0:01:29]}  Qxe4 {[%clk 0:00:54]} 20. Rae2 {[%clk 0:00:54]}  Bg4 {[%clk 0:00:53]} 21. Ne6 {[%clk 0:00:51]}  Be5 {[%clk 0:00:35]} 22. Qc2 {[%clk 0:00:39]}  Qxd5 {[%clk 0:00:15]} 23. Nxc7 {[%clk 0:00:38]}  Bxh2+ {[%clk 0:00:15]} 24. Kxh2 {[%clk 0:00:34]}  Qe5+ {[%clk 0:00:15]} 25. Kg1 {[%clk 0:00:31]}  Rc8 {[%clk 0:00:11]} 26. Qc4+ {[%clk 0:00:25]}  d5 {[%clk 0:00:10]} 27. Qxg4 {[%clk 0:00:23]}  Rxc7 {[%clk 0:00:09]} 28. Bh6 {[%clk 0:00:21]}  Qa1+ {[%clk 0:00:07]} 29. Rf1 {[%clk 0:00:18]} 1-0


[Site "https://www.chess.com"]